Cogmind - Beta 15 @@@ ROGUE MODE // 2025.05.07 @ 21:15:32 Player: celerysam Result: Destroyed by DO-MTD(h) with Battle Rifle Performance ------------- Evolutions (0) 0 Regions Visited (2) 400 Robots Destroyed (12) 60 Value Destroyed (168) 168 Prototype IDs (0) 0 Alien Tech Used (0) 0 Bonus (0) 0 TOTAL SCORE: 628 Bonus ------- None Cogmind --------- Core Integrity 0/250 Matter 300/300 Energy 196/200 System Corruption 0% Temperature Cool (0) Movement Treading (160) Location -10/Subcaves Parts ------- > --- POWER (1) -------- Subdweller Power Source > --- PROPULSION (2) --- Light Treads Light Treads > --- UTILITY (2) ------ Scrap Shield > --- WEAPON (2) ------- Riot Gun Light Cannon > --- INVENTORY (5) ---- Ion Engine ECM Suite Light Armor Plating Medium Laser Grenade Launcher Peak State ------------ > --- POWER ------------ Subdweller Power Source > --- PROPULSION ------- Light Treads Light Treads > --- UTILITY ---------- Scrap Shield > --- WEAPON ----------- Riot Gun Light Cannon > --- INVENTORY -------- Ion Engine ECM Suite Light Armor Plating Medium Laser Grenade Launcher [Rating: 12] Favorites ----------- Power Ion Engine Engine Ion Engine Propulsion Wheel Treads Light Treads Leg Aluminum Leg Wheel Wheel Utility Signal Interpreter Storage Large Storage Unit Processor Signal Interpreter Protection Scrap Shield Weapon Medium Laser Energy Gun Medium Laser Ballistic Gun Light Assault Rifle Ballistic Cannon Light Cannon Build | -11 -10 -10 ------- Run | Yrd Mat Sub Slots Evolved . | . . . Power . | . . . Propulsion . | . . . Utility . | . . . Weapon . | . . . Parts Attached 24 | 7 6 11 Power 5 | 1 . 4 Engine 5 | 1 . 4 Core . | . . . Reactor . | . . . Propulsion 8 | 2 2 4 Treads 2 | . . 2 Leg 2 | 2 . . Wheel 4 | . 2 2 Hover . | . . . Flight . | . . . Utility 5 | 1 3 1 Device . | . . . Storage 2 | 1 1 . Processor 1 | . 1 . Hackware . | . . . Protection 2 | . 1 1 Artifact . | . . . Weapon 6 | 3 1 2 Energy Gun 3 | 2 . 1 Energy Cannon . | . . . Ballistic Gun 2 | 1 1 . Ballistic Cannon 1 | . . 1 Launcher . | . . . Special Weapon . | . . . Impact Weapon . | . . . Slashing Weapon . | . . . Piercing Weapon . | . . . Special Melee Weapon . | . . . Unidentified Prototypes . | . . . Parts Lost 3 | . . 3 Power 1 | . . 1 Propulsion 1 | . . 1 Utility . | . . . Weapon 1 | . . 1 Highest Loss Streak 3 | . . 3 To Critical Strikes . | . . . Average Backups 9 | 4 9 10 Power 1 | . 1 1 Propulsion 4 | 2 5 3 Utility 1 | . 1 2 Weapon 1 | 1 1 2 Tool/Special . | . . . Unused Backups 8 | . 2 6 Power 3 | . 2 1 Propulsion 1 | . . 1 Utility 2 | . . 2 Weapon 2 | . . 2 Tool/Special . | . . . Average Slot Usage (%) 95 | . 97 93 Engine 13 | . 14 13 Treads 6 | . . 10 Leg 6 | . 15 . Wheel 15 | . 12 17 Storage 10 | . 14 8 Processor 9 | . 10 8 Protection 3 | . 1 5 Energy Gun 14 | . 14 14 Ballistic Gun 6 | . 14 . Ballistic Cannon 7 | . . 13 Peak Build Rating 12 | 6 8 12 Average Rating 7 | 4 7 8 On Entrance 4 | . 6 8 Naked Turns . | . . . Heaviest Build 29 | 13 28 29 Greatest Support 40 | 20 20 40 Greatest Overweight (x) 2 | . 1 2 Average Overweight (x) . | . . . Largest Inventory Capacity 15 | 8 15 15 Average Capacity 10 | 6 11 11 Most Carried 15 | 6 15 15 Average Carried 9 | 4 9 10 Final Capacity 15 | 8 15 5 Final Carried 15 | 6 15 5 Class Distribution -------------------- 100% | Mutant Dominant Class ---------------- Mutant | -10/Materials Mutant | -10/Subcaves Resources | -11 -10 -10 ----------- Run | Yrd Mat Sub Matter Collected 566 | 234 131 201 Remotely . | . . . Salvage Created 223 | . 214 9 Parts 28 | . 25 3 Haulers Intercepted . | . . . Recyclers Shooed . | . . . Parts Field Recycled . | . . . Retrieved Matter . | . . . Parts Self-Destructed 6 | . . 6 Prevented 1 | . . 1 Kills | -11 -10 -10 ------- Run | Yrd Mat Sub Combat Hostiles Destroyed 12 | . 11 1 Guns 11 | . 11 . Cannons 1 | . . 1 Classes Destroyed 2 | . 2 . Swarmer 10 | . 9 1 Grunt 2 | . 2 . Best Kill Streak 3 | . 3 1 Combat Bots Only 3 | . 3 1 Max Kills in Single Turn 1 | . 1 1 Gunslinging . | . . . Exploded . | . . . Melee . | . . . Uniques/NPCs Destroyed . | . . . Combat | -11 -10 -10 -------- Run | Yrd Mat Sub Hostile Shots Fired 56 | . 48 8 Missed 16 | . 12 4 Hits 40 | . 36 4 Projectile 40 | . 36 4 Damage Taken 667 | . 306 361 Core 252 | . 89 163 Absorbed by Shields . | . . . Core Remaining (%) 100 | 100 . . Volleys Fired 59 | . 35 24 Largest 2 | . 2 2 Hottest 80 | . 70 80 Shots Fired 94 | . 69 25 Gun 70 | . 69 1 Cannon 24 | . . 24 Launcher . | . . . Special . | . . . Kinetic 59 | . 35 24 Thermal 35 | . 34 1 Explosive . | . . . Electromagnetic . | . . . Robot Hit Streak 4 | . 4 1 Robot Miss Streak 5 | . 4 5 Penetration Max . | . . . Secondary Targets 4 | . 4 . Max Gunslinging Chain 1 | . 1 . Shots Hit Robots 34 | . 32 2 Core Hits 18 | . 17 1 Critical Kills . | . . . Critical Parts Destroyed . | . . . Critical Strikes 3 | . 3 . Burn 3 | . 3 . Melee Attacks . | . . . Impact . | . . . Slashing . | . . . Piercing . | . . . Sneak Attacks . | . . . Combat Hostiles . | . . . Follow-up Attacks . | . . . Damage Inflicted 371 | . 338 33 Guns 338 | . 338 . Cannons 33 | . . 33 Explosions . | . . . Melee . | . . . Ramming . | . . . Kinetic 147 | . 114 33 Thermal 224 | . 224 . Explosive . | . . . Electromagnetic . | . . . Impact . | . . . Slashing . | . . . Piercing . | . . . Highest Corruption . | . . . Average Corruption . | . . . Corruption Purged . | . . . Corruption Blocked . | . . . Overload Shots . | . . . Overflow Damage . | . . . Projectiles . | . . . Explosions . | . . . Melee . | . . . Knockbacks . | . . . Impact . | . . . Kinetic . | . . . Secondary . | . . . Self-Inflicted Damage . | . . . Shots . | . . . Rammed . | . . . Targets Rammed . | . . . Kicked . | . . . Crushed . | . . . Highest Temperature 146 | . 146 . Average Temperature 44 | . 44 . Received Heat Transfer 36 | . 36 . Siege Activations . | . . . Martial Activations . | . . . Shielding Activations . | . . . Robots Disrupted . | . . . Combat Hostiles . | . . . Robots Corrupted . | . . . Combat Hostiles . | . . . Parts Fried . | . . . Impact Corruptions . | . . . Robots Melted . | . . . Combat Hostiles . | . . . Parts Melted 1 | . 1 . Heat Transferred 888 | . 888 . Parts Sabotaged . | . . . Parts Stolen . | . . . Parts Stripped . | . . . Power Chain Reactions . | . . . Alert | -11 -10 -10 ------- Run | Yrd Mat Sub Maximum Alert Level . | . . . Low Security (%) 100 | 100 100 . Level 1 . | . . . Level 2 . | . . . Level 3 . | . . . Level 4 . | . . . Level 5 . | . . . High Security . | . . . Max Security . | . . . Peak Influence 127 | . 127 . Initial . | . . . Average 37 | . 42 . Influence Increases 365 | . 320 45 Destroy 0b10 Robot/C 240 | . 220 20 Destroy Leader 50 | . 40 10 Partial Spotted 15 | . 15 . Lose Combat Pursuer 60 | . 45 15 Influence Decreases 365 | . 225 140 Entered New Map 47 | . . 47 Time Decay 318 | . 225 93 Squads Dispatched 2 | . 2 . Investigation . | . . . Extermination . | . . . Reinforcement 2 | . 2 . Assault . | . . . Garrison . | . . . Intercept . | . . . Searches Triggered . | . . . Construction Impeded . | . . . Haulers Reinforced . | . . . Active Scanning Responses . | . . . Cargo Convoy Interrupts . | . . . Stealth | -11 -10 -10 --------- Run | Yrd Mat Sub Distress Signals 3 | . 3 . Communications Jammed . | . . . Distress Signals . | . . . Times Spotted 29 | . 25 4 Peak Tracking Total 6 | . 6 3 Tactical Retreats 3 | . 2 1 Traps | -11 -10 -10 ------- Run | Yrd Mat Sub Traps Triggered 6 | . . 6 Indirectly . | . . . Trap Hack Attempts . | . . . Triggered . | . . . Disarmed . | . . . Reprogrammed . | . . . Reused . | . . . Traps Extracted . | . . . Installed . | . . . Triggered . | . . . Machines | -11 -10 -10 ---------- Run | Yrd Mat Sub Machines Disabled . | . . . Max in Single Turn . | . . . Machines Repaired . | . . . Machines Dismantled . | . . . Machines Sabotaged . | . . . Overloaded Fab Kills . | . . . Hacking | -11 -10 -10 --------- Run | Yrd Mat Sub Machines Accessed 2 | . 1 1 Terminals 1 | . 1 . Fabricators . | . . . Repair Stations . | . . . Recycling Units . | . . . Scanalyzers . | . . . Garrison Access . | . . . Total Hacks 5 | . 1 4 Successful 5 | . 1 4 Failed . | . . . Catastrophic . | . . . Database Lockouts . | . . . Manual . | . . . Terminals 1 | . 1 . Fabricators . | . . . Repair Stations . | . . . Recycling Units . | . . . Scanalyzers . | . . . Garrison Access . | . . . Terminal Hacks 5 | . 1 4 Record 4 | . . 4 Alert Level 1 | . 1 . Fabricator Hacks . | . . . Repair Station Hacks . | . . . Recycling Unit Hacks . | . . . Scanalyzer . | . . . Garrison Access Hacks . | . . . Unauthorized Hacks . | . . . Terminals . | . . . Fabricators . | . . . Repair Stations . | . . . Recycling Units . | . . . Scanalyzers . | . . . Garrison Access . | . . . Data Cores Recovered . | . . . Used . | . . . Hacking Detections . | . . . Full Trace Events . | . . . Feedback Events . | . . . Feedback Blocked . | . . . Robot Schematics Acquired . | . . . Robots Built . | . . . Authchips . | . . . Time . | . . . Total Robot Build Rating . | . . . Part Schematics Acquired . | . . . Parts Built . | . . . Authchips . | . . . Time . | . . . Total Part Build Rating . | . . . Parts Repaired . | . . . Time . | . . . Parts Recycled . | . . . Recycled Matter . | . . . Retrieved Matter . | . . . Retrieved Components . | . . . Parts Scanalyzed . | . . . Part Schematics Acquired . | . . . Parts Damaged . | . . . Bothacking | -11 -10 -10 ------------ Run | Yrd Mat Sub Used RIF Installer . | . . . Robots Hacked . | . . . Non-combat . | . . . Combat . | . . . Robot Hacks Applied . | . . . Relay Couplers Released . | . . . Fabnet Peak Effective % . | . . . Robots Rewired . | . . . Allies Hacked . | . . . Hacks Repelled . | . . . Allies | -11 -10 -10 -------- Run | Yrd Mat Sub Total Allies . | . . . Largest Group . | . . . Highest-Rated Group . | . . . Highest-Rated Ally . | . . . Total Orders . | . . . Ally Attacks . | . . . Total Damage . | . . . Kills . | . . . Allies Corrupted . | . . . Allies Melted . | . . . Intel | -11 -10 -10 ------- Run | Yrd Mat Sub Active Infowar (turns) . | . . . Robot Analysis Total . | . . . Derelict Logs Recovered . | . . . Drone Launches . | . . . Drone Recoveries . | . . . Exploration | -11 -10 -10 ------------- Run | Yrd Mat Sub Turns Passed 1465 | 79 580 806 Spaces Moved 1102 | 47 428 627 Core 18 | 18 . . Treads 188 | . . 188 Legs 241 | 29 212 . Wheels 655 | . 216 439 Hover . | . . . Flight . | . . . Fastest Speed 50 | 50 95 95 Average Speed 110 | 93 107 114 Slowest Speed 160 | 120 120 160 Overloaded Moves . | . . . Propulsion Burnouts . | . . . Robots Hopped . | . . . Potential Cave-ins . | . . . Cave-ins Triggered . | . . . Exploration Rate (%) 35 | 3 56 48 Regions Visited 2 Branch Regions 1 Pre-discovered Areas . | . . . Known Exits Taken 1 | . 1 . Unknown Exits Taken 1 | 1 . . Scrap Searched . | . . . Spaces Dug . | . . . Terrain Destroyed . | . . . Melee . | . . . Projectile . | . . . AOE . | . . . Terrain Rammed . | . . . Walls Destroyed . | . . . Machines Disabled . | . . . Actions | -11 -10 -10 --------- Run | Yrd Mat Sub Total 1255 | 79 486 690 Wait 26 | 18 2 6 Move 1100 | 46 427 627 Hop . | . . . Pick Up 25 | 8 11 6 Fast Attach 6 | 4 2 . Attach 6 | 2 . 4 Detach . | . . . Swap 13 | 1 4 8 Drop 20 | . 5 15 Fire 59 | . 35 24 Melee . | . . . Ram . | . . . Kick . | . . . Crush . | . . . Escape Stasis . | . . . Rewire . | . . . Trap . | . . . Miscellaneous . | . . . Route ------- -11/Scrapyard -10/Materials (discovered 3 exits: [*Mat] / [*Min] / *Sub) -10/Subcaves History --------- Turn | Location | Event 5 | -11/Scrapyard | Discovered new exit (range 15) 80 | -11/Scrapyard | Entered Materials 315 | -10/Materials | Build established: Mutant 442 | -10/Materials | Discovered new exit (range 13) 562 | -10/Materials | Discovered new exit (range 8) 574 | -10/Materials | Discovered new exit (range 3) 659 | -10/Materials | Identified exit to Subcaves 660 | -10/Materials | Entered Subcaves 795 | -10/Subcaves | Visited Clippyterm 798 | -10/Subcaves | Learned Factory garrison access intel 938 | -10/Subcaves | Core integrity fell below 50% 947 | -10/Subcaves | A swath of the cavern ceiling suddenly collapsed 959 | -10/Subcaves | Core integrity fell below 20% 982 | -10/Subcaves | Lost 3 parts (1p1n1w) 1385 | -10/Subcaves | Shifting Twisted Machinery released Riot Gun 1390 | -10/Subcaves | Shifting Twisted Machinery released Sub. Power Source 1466 | -10/Subcaves | Destroyed by DO-MTD(h) with Battle Rifle Last Messages --------------- Unit. 01161_ Acquired ECM Suite. 01164_ Acquired Wheel. 01166_ Acquired 6 matter. 01170_ Subatomizers dissect the Aluminum Leg. 01170_ Dropped Lgt. Ion Engine. 01176_ Acquired 1 matter. 01177_ Acquired 23 matter. 01180_ Subatomizers dissect the Lgt. Assault Rifle. 01181_ Dropped Lgt. Ion Engine. 01265_ Acquired 30 matter. 01349_ 8A-UC4(u) tweaks Twisted Machinery. Riot Gun falls loose from the Twisted Machinery. Sub. Power Source falls loose from the Twisted Machinery. 01400_ Dropped Wheel. 01400_ Acquired Riot Gun. 01463_ HV Slug penetrates 8C-QMB(R). 01465_ Acquired 10 matter. Map ----- +----------------------------------------------------+ | ???????????????????????????????????????????#" ""# | | ???????????????????????????????????????????#" " " | | ???????????????????????????????????????????#"" """ | | ???????????????????????????????????????????#"""" | | ???????????????????????????????????????????## "" | | ????????????????????????????????????????????## | | ?????????????????????????????????????????????# | | ?????????????????????????????????????????????# | | ?????????????????????????????????????????????## | | ????????????????????????????????????? ???????## | | ????????????????????????????????????? #???????## | | ???????????????????????? ?????????? #????????## | | ???????????????????????# #????????? #?????????? | | ???????????????????????? #????????# #?????????? | | ????????????????????????? #??????## ##????????? | | ?????????????????????????# ##????# ###??????? | | ?????????????????????????# ##??## #????##? | | ?????????????????????????# #### ?????# # | | ?????????????????????????# ## #??????# | | ?????????????????????????# #??????? | | ?????????????????????????? ######??? | | ???????????????#????????????# ##??# | | ???????????????#; ????????## ##?# | | ?????????????????# R #????## ### | | ?????????????????# ### | | ?????????????????# @%& ## | | ?????????????????# %h ## | | ????????????????# ### ### | | ????????????????##### ########?###?## #### # | | ????????????????????####??????????????######??#### | | ?????????????????????????????????????????????????? | | ?????????????????????????????????????????????????? | | ?????????????????????????????????????????????????? | | ?????????????????????????????????????????????????? | | ?????????????????????????????????????????????????? | | ?????????????????????????????????????????????????? | | ?????????????????????????????????????????????????? | | ?????????????????????????????????????????????????? | | ?????????????????????????????????????????????????? | | ?????????????????????????????????????????????????? | | ?????????????????????????????????????????????????? | | ?????????????????????????????????????????????????? | | ?????????????????????????????????????????????????? | | ?????????????????????????????????????????????????? | | | | | | | | | | | | | +----------------------------------------------------+ Best States ------------- Heat Dissipation 25 Energy Generation 15 Energy Capacity 250 Matter Stores 300 Matter Capacity 300 Sight Range 16 Terrain Scan Density 10 Armor Coverage 800 Power Shielding 33 Evasion (%) 55 Recoil Reduction 2 Item Schematics ----------------- None Robot Schematics ------------------ None Fabricated ------------ Nothing Repaired ---------- Nothing Alien Tech Used ----------------- None Achievements -------------- None Challenges ------------ None Game ------ Seed CoolantDispersalHammer Manual? 0 Play Time 00:14:54 Cumulative 238.4 hours Start 2025.05.07 @ 21:00:48 End 2025.05.07 @ 21:15:32 Sessions 1 Manual Loads 0 Difficulty Rogue Special Mode None Game No. 359 Rogue 359 Adventurer 0 Explorer 0 Win Type - Total 1 Types 1/0/0/0/0/0/0/0/0/0 Lore% 46 Gallery% 59 Achievement% 43 Wizard Run 0 Options --------- Layout 1 ASCII 0 Keyboard 0 Movement Mouse Keybinds 0 Fullscreen 2 Font 24/Smallcaps Map View 50x35 Zoom Use 0% Tactical HUD 1 Map Filters NONE Filters NONE Steam 1 RUN: a3c0bcd3-c9c5-44a5-97b0-cc165ca9d1c5